fUST/lending_fUST_20251014
["ID","MTS","AMOUNT","RATE_DAILY","PERIOD"]
[391133646,1760385038717,-500.0,0.00021883,2]
[391133648,1760385038727,-500.0,0.00021883,2]
[391133650,1760385038736,-326.52535265,0.00021883,2]
[391133652,1760385038746,-500.0,0.00021883,2]
[391133653,1760385038756,-500.0,0.00021883,2]
[391133654,1760385038765,-500.0,0.00021883,2]
[391133655,1760385038775,-500.0,0.00021883,2]
[391133656,1760385038788,-500.0,0.00021883,2]
[391133657,1760385038798,-500.0,0.00021883,2]
[391133658,1760385038807,-500.0,0.00021883,2]
[391133659,1760385038816,-500.0,0.00021883,2]
[391133661,1760385038826,-500.0,0.00021883,2]
[391133662,1760385038836,-344.43312721,0.00021883,2]
[391133663,1760385038845,-500.0,0.00021883,2]
[391133664,1760385038856,-500.0,0.00021883,2]
[391133665,1760385038866,-500.0,0.00021883,2]
[391133666,1760385038876,-500.0,0.00021883,2]
[391133667,1760385038885,-500.0,0.00021883,2]
[391133668,1760385038896,-500.0,0.00021883,2]
[391133669,1760385038906,-500.0,0.00021883,2]
[391133670,1760385038915,-500.0,0.00021883,2]
[391133671,1760385038925,-500.0,0.00021883,2]
[391133672,1760385038939,-500.0,0.00021883,2]
[391133673,1760385038949,-500.0,0.00021883,2]
[391133674,1760385038958,-500.0,0.00021883,2]
[391133675,1760385038968,-500.0,0.00021883,2]
[391133676,1760385038977,-500.0,0.00021883,2]
[391133677,1760385038987,-500.0,0.00021883,2]
[391133678,1760385038996,-500.0,0.00021883,2]
[391133679,1760385039005,-247.83478798,0.00021883,2]
[391133680,1760385039013,-500.0,0.00021883,2]
[391133681,1760385039023,-500.0,0.00021883,2]
[391133682,1760385039032,-500.0,0.00021883,2]
[391133683,1760385039041,-500.0,0.00021883,2]
[391133684,1760385039152,-500.0,0.00021883,2]
[391133685,1760385039162,-500.0,0.00021883,2]
[391133686,1760385039172,-500.0,0.00021883,2]
[391133687,1760385039182,-500.0,0.00021883,2]
[391133688,1760385039191,-500.0,0.00021883,2]
[391133689,1760385039201,-500.0,0.00021883,2]
[391133690,1760385039212,-266.16638005,0.00021883,2]
[391133691,1760385039222,-239.13478104,0.00021883,2]
[391133692,1760385039321,-260.86521896,0.00021883,2]
[391133693,1760385039331,-500.0,0.00021883,2]
[391133694,1760385039340,-500.0,0.00021883,2]
[391133695,1760385039349,-500.0,0.00021883,2]
[391133696,1760385039359,-500.0,0.00021883,2]
[391133697,1760385039368,-500.0,0.00021883,2]
[391133698,1760385039378,-500.0,0.00021883,2]
[391133699,1760385039388,-500.0,0.00021883,2]
[391133700,1760385039398,-500.0,0.00021883,2]
[391133701,1760385039407,-500.0,0.00021883,2]
[391133702,1760385039417,-500.0,0.00021883,2]
[391133703,1760385039426,-500.0,0.00021883,2]
[391133704,1760385039436,-500.0,0.00021883,2]
[391133705,1760385039445,-500.0,0.00021883,2]
[391133706,1760385039454,-500.0,0.00021883,2]
[391133707,1760385039465,-155.11698492,0.00021883,2]
[391133708,1760385039474,-500.0,0.00021883,2]
[391133709,1760385039483,-500.0,0.00021883,2]
[391133710,1760385039493,-81.81779612,0.00021883,2]
[391133711,1760385039504,-418.18220388,0.00021883,2]
[391133712,1760385039514,-500.0,0.00021883,2]
[391133713,1760385039523,-500.0,0.00021883,2]
[391133714,1760385039534,-500.0,0.00021883,2]
[391133715,1760385039543,-500.0,0.00021883,2]
[391133716,1760385039554,-500.0,0.00021883,2]
[391133717,1760385039563,-500.0,0.00021883,2]
[391133718,1760385039572,-500.0,0.00021883,2]
[391133719,1760385039582,-500.0,0.00021883,2]
[391133720,1760385039592,-500.0,0.00021883,2]
[391133721,1760385039601,-500.0,0.00021883,2]
[391133722,1760385039610,-500.0,0.00021883,2]
[391133723,1760385039619,-500.0,0.00021883,2]
[391133724,1760385039628,-500.0,0.00021883,2]
[391133725,1760385039638,-500.0,0.00021883,2]
[391133726,1760385039647,-500.0,0.00021883,2]
[391133727,1760385039657,-500.0,0.00021883,2]
[391133728,1760385039667,-500.0,0.00021883,2]
[391133729,1760385039676,-14566.18796543,0.00021885,2]
[391133730,1760385039687,-1902.47090782,0.00021885,2]
[391133757,1760385043756,-1726.89598739,0.00021785,2]
[391133758,1760385043766,-2525.80021261,0.00021885,2]
[391133759,1760385043920,-278.29379134,0.00021885,2]
[391133775,1760385046623,-3538.19455488,0.00021875,10]
[391133799,1760385052872,150.0,0.00020237,2]
[391133822,1760385081872,300.0,0.000202,2]
[391133823,1760385092448,300.0,0.000202,2]
[391133824,1760385103088,300.0,0.000202,2]
[391133825,1760385131939,178.6,0.00020185,2]
[391133826,1760385200507,300.0,0.000202,2]
[391133827,1760385210929,200.55,0.00020179,2]
[391133828,1760385211638,300.0,0.000202,2]
[391133829,1760385215744,5000.0,0.00020972,2]
[391133830,1760385265931,-244.49857668,0.00021,2]
[391133831,1760385290256,219.72,0.00020278,2]
[391133832,1760385291326,-202.33201336,0.0002099,2]
[391133833,1760385293804,-297.66798464,0.0002099,2]
[391133834,1760385369855,219.23,0.00020156,2]
[391133835,1760385404857,2346.19819886,0.000209,2]
[391133836,1760385428566,1000.0,0.00020474,2]
[391133837,1760385449116,221.94,0.00020257,2]
[391133838,1760385520948,-334.08815326,0.00020988,2]
[391133839,1760385524396,-238.38815326,0.00020988,2]
[391133840,1760385529255,219.12,0.00020341,2]
[391133841,1760385609520,235.83,0.0002034,2]
[391133843,1760385631890,166.84448562,0.00020888,2]
[391133844,1760385650545,30640.3587389,0.00020228,2]
[391133845,1760385656385,-315.39450413,0.0002098,10]
[391133846,1760385659426,-256.49466964,0.0002098,10]
[391133847,1760385683739,6944.37111603,0.000209,2]
[391133848,1760385689676,233.51,0.00020325,2]
[391133849,1760385745157,1356.5617515,0.0002039,2]
[391133850,1760385745501,1356.5617515,0.00020696,2]
[391133851,1760385768919,230.54,0.00020343,2]
[391133852,1760385848556,227.61,0.0002033,2]
[391133854,1760385893474,2052.92342402,0.00020887,2]
[391133855,1760385929999,224.71,0.00020326,2]
[391133857,1760386009738,221.85,0.00020324,2]
[391133858,1760386013939,477.489661,0.00019983,2]
[391133860,1760386025521,5555.49689284,0.00020886,2]
[391133861,1760386080572,196.29,0.00015494,3]
[391133862,1760386080858,196.29,0.00015494,3]
[391133863,1760386081155,196.29,0.00015494,3]
[391133864,1760386090258,219.03,0.00020324,2]
[391133865,1760386134838,1796.307996,0.00020885,2]
[391133866,1760386142538,300.0,0.00020972,2]
[391133867,1760386187635,216.24,0.00020324,2]
[391133868,1760386201224,300.0,0.00020972,2]
[391133869,1760386201950,300.0,0.00020972,2]
[391133870,1760386202402,300.0,0.00020972,2]
[391133871,1760386202464,300.0,0.00020972,2]
[391133872,1760386202657,300.0,0.00020972,2]
[391133873,1760386202814,1200.0,0.00020972,2]
[391133926,1760386232427,-160.0,0.00020973,2]
[391133927,1760386232436,-224.125813,0.00020973,2]
[391133928,1760386232447,-275.874187,0.00020973,2]
[391133929,1760386232457,-500.0,0.00020973,2]
[391133930,1760386232466,-79.445813,0.00020973,2]
[391133931,1760386232521,-420.554187,0.00020973,2]
[391133932,1760386232530,-500.0,0.00020973,2]
[391133933,1760386232539,-500.0,0.00020973,2]
[391133934,1760386232548,-1200.0,0.00020976,2]
[391133935,1760386232557,-1117.62,0.00020976,3]
[391133936,1760386232566,-2235.25,0.0002098,3]
[391133937,1760386232575,-1117.62,0.0002098,3]
[391133938,1760386232584,-500.0,0.00020985,2]
[391133939,1760386232594,-500.0,0.00020985,2]
[391133940,1760386232603,-500.0,0.00020985,2]
[391133941,1760386232612,-500.0,0.00020985,2]
[391133942,1760386232622,-500.0,0.00020985,2]
[391133943,1760386232631,-500.0,0.00020985,2]
[391133944,1760386232640,-500.0,0.00020985,2]
[391133945,1760386232649,-500.0,0.00020985,2]
[391133946,1760386232659,-500.0,0.00020985,2]
[391133947,1760386232668,-510.54380499,0.00020985,2]
[391133948,1760386232677,-500.0,0.00020985,2]
[391133949,1760386232686,-500.0,0.00020985,2]
[391133950,1760386232695,-500.0,0.00020985,2]
[391133951,1760386232704,-500.0,0.00020985,2]
[391133952,1760386232714,-500.0,0.00020985,2]
[391133953,1760386232723,-500.0,0.00020985,2]
[391133954,1760386232732,-500.0,0.00020985,2]
[391133955,1760386232741,-500.0,0.00020985,2]
[391133956,1760386232750,-500.0,0.00020985,2]
[391133957,1760386232759,-500.0,0.00020985,2]
[391133958,1760386232768,-500.0,0.00020985,2]
[391133959,1760386232777,-500.0,0.00020985,2]
[391133960,1760386232787,-230.22720266,0.00020988,2]
[391133961,1760386232796,-500.0,0.00020989,2]
[391133962,1760386232805,-84690.23401708,0.0002099,2]
[391133963,1760386232814,-55.50142332,0.00021,2]
[391133964,1760386232823,-151.0,0.00021,3]
[391133965,1760386232832,-5555.49689282,0.00021086,2]
[391133966,1760386232843,-151.0,0.000212,4]
[391133967,1760386232852,-500.0,0.00021263,2]
[391133968,1760386232861,-5555.49689282,0.00021285,2]
[391133969,1760386232870,-432.48,0.00021291,2]
[391133970,1760386232879,-151.0,0.000213,3]
[391133971,1760386232888,-230.44954705,0.00021306,2]
[391133972,1760386232898,-5555.49689282,0.00021485,2]
[391133973,1760386232907,-151.0,0.000215,3]
[391133974,1760386232916,-1000.0,0.00021521,2]
[391133975,1760386232925,-1000.0,0.00021521,2]
[391133976,1760386232934,-1000.0,0.00021521,2]
[391133977,1760386232944,-500.0,0.00021537,2]
[391133978,1760386232953,-1066.67,0.00021563,3]
[391133979,1760386232963,-153.68,0.00021563,3]
[391133980,1760386232972,-153.66,0.00021563,3]
[391133981,1760386232983,-264.76128306,0.00021588,2]
[391133982,1760386232992,-1000.0,0.00021661,2]
[391133983,1760386233001,-150.0,0.00021672,2]
[391133984,1760386233010,-300.0,0.00021672,2]
[391133985,1760386233019,-450.0,0.00021672,2]
[391133986,1760386233029,-600.0,0.00021672,2]
[391133987,1760386233038,-750.0,0.00021672,2]
[391133988,1760386233048,-796.96311072,0.00021672,2]
[391133989,1760386233057,-500.0,0.00021673,2]
[391133990,1760386233066,-500.0,0.00021673,2]
[391133991,1760386233075,-500.0,0.00021673,2]
[391133992,1760386233084,-15753.41834761,0.00021673,2]
[391133993,1760386233097,-500.0,0.00021684,2]
[391133994,1760386233106,-5555.49689282,0.00021684,2]
[391133995,1760386233115,-196.5,0.00021693,2]
[391133996,1760386233124,-151.0,0.000217,4]
[391133997,1760386233134,-347.0,0.00021722,2]
[391133998,1760386233143,-500.0,0.00021773,2]
[391133999,1760386233152,-500.0,0.00021773,2]
[391134000,1760386233161,-500.0,0.00021773,2]
[391134001,1760386233171,-381.43629838,0.00021773,2]
[391134002,1760386233181,-501.28166365,0.00021773,2]
[391134003,1760386233190,-500.0,0.00021773,2]
[391134004,1760386233199,-500.0,0.00021773,2]
[391134005,1760386233208,-302.38877631,0.00021773,2]
[391134006,1760386233217,-500.0,0.00021773,2]
[391134007,1760386233226,-558.7503043,0.00021773,2]
[391134008,1760386233237,-500.0,0.00021773,2]
[391134009,1760386233246,-500.0,0.00021773,2]
[391134010,1760386233255,-501.67980443,0.00021773,2]
[391134011,1760386233264,-500.0,0.00021773,2]
[391134012,1760386233273,-441.49133954,0.00021773,2]
[391134013,1760386233282,-500.0,0.00021773,2]
[391134014,1760386233291,-500.0,0.00021773,2]
[391134015,1760386233299,-501.9124078,0.00021773,2]
[391134016,1760386233308,-445.34633358,0.00021773,2]
[391134017,1760386233320,-54.65366642,0.00021773,2]
[391134018,1760386233329,-501.49410262,0.00021773,2]
[391134019,1760386233338,-270.2098745,0.00021773,2]
[391134020,1760386233347,-508.16744034,0.00021773,2]
[391134021,1760386233355,-500.0,0.00021773,2]
[391134022,1760386233364,-500.4142768,0.00021773,2]
[391134023,1760386233373,-500.0,0.00021773,2]
[391134024,1760386233382,-500.0,0.00021773,2]
[391134025,1760386233391,-500.0,0.00021773,2]
[391134026,1760386233399,-500.0,0.00021773,2]
[391134027,1760386233408,-500.0,0.00021773,2]
[391134028,1760386233418,-150.0,0.00021773,2]
[391134029,1760386233427,-500.0,0.00021773,2]
[391134030,1760386233436,-500.0,0.00021773,2]
[391134031,1760386233445,-500.0,0.00021773,2]
[391134032,1760386233454,-500.0,0.00021773,2]
[391134033,1760386233463,-629.91054668,0.00021783,2]
[391134034,1760386233472,-500.0,0.00021783,2]
[391134035,1760386233483,-500.0,0.00021783,2]
[391134036,1760386233492,-7288.10199781,0.00021784,2]
[391134051,1760386237714,-1356.5617515,0.00021086,2]
[391134053,1760386237724,-1356.5617515,0.00021098,2]
[391134055,1760386237735,-1356.56175152,0.00021426,2]
[391134056,1760386237747,-500.0,0.00021783,2]
[391134057,1760386237757,-193.5225545,0.00021783,2]
[391134058,1760386237767,-236.83269406,0.00021784,2]
[391134059,1760386237778,-362475.06530813,0.00021784,2]
[391134060,1760386237788,-500.0,0.00021784,2]
[391134061,1760386237894,-151.410697,0.00021784,7]
[391134062,1760386237903,-151.0,0.00021784,7]
[391134063,1760386237912,-151.0,0.00021784,7]
[391134064,1760386237922,-151.0,0.00021784,7]
[391134065,1760386237931,-151.0,0.00021784,7]
[391134066,1760386237940,-151.0,0.00021784,7]
[391134067,1760386237949,-200.004155,0.00021784,7]
[391134068,1760386237958,-151.0,0.00021784,7]
[391134069,1760386237967,-151.0,0.00021784,7]
[391134070,1760386237976,-151.0,0.00021784,7]
[391134071,1760386237986,-154.903651,0.00021784,7]
[391134072,1760386237995,-151.638751,0.00021784,7]
[391134073,1760386238003,-151.0,0.00021784,7]
[391134074,1760386238012,-151.0,0.00021784,7]
[391134075,1760386238022,-151.0,0.00021784,7]
[391134076,1760386238031,-151.0,0.00021784,7]
[391134077,1760386238041,-151.0,0.00021784,7]
[391134078,1760386238049,-151.0,0.00021784,7]
[391134079,1760386238059,-152.349513,0.00021784,7]
[391134080,1760386238068,-151.0,0.00021784,7]
[391134081,1760386238079,-151.0,0.00021784,7]
[391134082,1760386238088,-151.0,0.00021784,7]
[391134083,1760386238100,-151.0,0.00021784,7]
[391134084,1760386238109,-151.0,0.00021784,7]
[391134085,1760386238118,-151.0,0.00021784,7]
[391134086,1760386238127,-151.0,0.00021784,7]
[391134087,1760386238137,-151.0,0.00021784,7]
[391134088,1760386238146,-166.140222,0.00021784,7]
[391134089,1760386238155,-166.140222,0.00021784,7]
[391134090,1760386238164,-151.0,0.00021784,7]
[391134091,1760386238174,-151.0,0.00021784,7]
[391134092,1760386238183,-166.140222,0.00021784,7]
[391134093,1760386238193,-166.140222,0.00021784,7]
[391134094,1760386238202,-151.0,0.00021784,7]
[391134095,1760386238211,-151.0,0.00021784,7]
[391134096,1760386238220,-151.0,0.00021784,7]
[391134097,1760386238230,-153.01563,0.00021784,7]
[391134098,1760386238239,-151.0,0.00021784,7]
[391134099,1760386238248,-151.0,0.00021784,7]
[391134100,1760386238257,-151.0,0.00021784,7]
[391134101,1760386238267,-151.0,0.00021784,7]
[391134102,1760386238276,-151.0,0.00021784,7]
[391134103,1760386238285,-151.253015,0.00021784,7]
[391134104,1760386238294,-151.0,0.00021784,7]
[391134105,1760386238303,-151.0,0.00021784,7]
[391134106,1760386238313,-153.611127,0.00021784,7]
[391134107,1760386238322,-151.410667,0.00021784,7]
[391134108,1760386238331,-151.220237,0.00021784,7]
[391134109,1760386238341,-151.0,0.00021784,7]
[391134110,1760386238350,-151.0,0.00021784,7]
[391134111,1760386238359,-151.0,0.00021784,7]
[391134112,1760386238368,-151.0,0.00021784,7]
[391134113,1760386238377,-151.0,0.00021784,7]
[391134114,1760386238386,-151.0,0.00021784,7]
[391134115,1760386238396,-151.0,0.00021784,7]
[391134116,1760386238405,-151.0,0.00021784,7]
[391134117,1760386238415,-163.49043,0.00021784,7]
[391134118,1760386238424,-163.49043,0.00021784,7]
[391134119,1760386238432,-151.0,0.00021784,7]
[391134120,1760386238441,-151.0,0.00021784,7]
[391134121,1760386238452,-163.49043,0.00021784,7]
[391134122,1760386238461,-154.503041,0.00021784,7]
[391134123,1760386238471,-209.337906,0.00021784,7]
[391134124,1760386238480,-151.0,0.00021784,7]
[391134125,1760386238490,-163.49043,0.00021784,7]
[391134126,1760386238499,-151.0,0.00021784,7]
[391134127,1760386238508,-2685.634428,0.00021784,7]
[391134128,1760386238518,-151.0,0.00021784,7]
[391134129,1760386238527,-2685.634428,0.00021784,7]
[391134130,1760386238536,-2685.634428,0.00021784,7]
[391134131,1760386238546,-2685.634428,0.00021784,7]
[391134132,1760386238556,-151.0,0.00021784,7]
[391134133,1760386238566,-151.0,0.00021784,7]
[391134134,1760386238575,-382.250119,0.00021784,7]
[391134135,1760386238584,-382.250119,0.00021784,7]
[391134136,1760386238594,-382.250119,0.00021784,7]
[391134137,1760386238603,-382.250119,0.00021784,7]
[391134138,1760386238612,-191.813138,0.00021784,7]
[391134139,1760386238621,-191.813138,0.00021784,7]
[391134140,1760386238631,-191.813138,0.00021784,7]
[391134141,1760386238640,-191.813138,0.00021784,7]
[391134142,1760386238650,-151.0,0.00021784,7]
[391134143,1760386238659,-151.0,0.00021784,7]
[391134144,1760386238668,-156.495404,0.00021784,7]
[391134145,1760386238678,-151.0,0.00021784,7]
[391134146,1760386238687,-151.0,0.00021784,7]
[391134147,1760386238696,-151.0,0.00021784,7]
[391134148,1760386238705,-151.0,0.00021784,7]
[391134149,1760386238714,-151.0,0.00021784,7]
[391134150,1760386238723,-151.0,0.00021784,7]
[391134151,1760386238733,-151.0,0.00021784,7]
[391134152,1760386238743,-151.0,0.00021784,7]
[391134153,1760386238752,-151.0,0.00021784,7]
[391134154,1760386238761,-153.121087,0.00021784,7]
[391134155,1760386238771,-284.056383,0.00021784,7]
[391134156,1760386238780,-284.056383,0.00021784,7]
[391134157,1760386238790,-284.056383,0.00021784,7]
[391134158,1760386238799,-151.0,0.00021784,7]
[391134159,1760386238808,-220.686934,0.00021784,7]
[391134160,1760386238826,-284.056383,0.00021784,7]
[391134161,1760386238837,-151.0,0.00021784,7]
[391134162,1760386238847,-151.0,0.00021784,7]
[391134163,1760386238858,-151.0,0.00021784,7]
[391134164,1760386238868,-50000.0,0.00021784,2]
[391134165,1760386238879,-642.27865637,0.00021808,2]
[391134166,1760386238890,-500.0,0.00021811,2]
[391134167,1760386238900,-491.5446625,0.00021841,2]
[391134168,1760386238910,-1465.412534,0.00021841,2]
[391134169,1760386238920,-445.1005628,0.00021853,2]
[391134170,1760386238929,-255.0,0.00021863,5]
[391134171,1760386238939,-1728.0339442,0.00021864,2]
[391134172,1760386238949,-64837.5793497,0.00021864,2]
[391134173,1760386238959,-502.44579134,0.00021873,2]
[391134174,1760386238968,-500.0,0.00021873,2]
[391134175,1760386238978,-500.0,0.00021873,2]
[391134176,1760386238987,-500.0,0.00021873,2]
[391134177,1760386238996,-504.18830182,0.00021873,2]
[391134178,1760386239006,-500.0,0.00021873,2]
[391134179,1760386239016,-500.0,0.00021873,2]
[391134180,1760386239026,-500.0,0.00021873,2]
[391134181,1760386239036,-500.0,0.00021873,2]
[391134182,1760386239046,-500.0,0.00021873,2]
[391134183,1760386239056,-500.0,0.00021873,2]
[391134184,1760386239066,-500.0,0.00021873,2]
[391134185,1760386239076,-500.0,0.00021873,2]
[391134186,1760386239085,-500.0,0.00021873,2]
[391134187,1760386239099,-500.0,0.00021873,2]
[391134188,1760386239109,-500.0,0.00021873,2]
[391134189,1760386239118,-500.0,0.00021873,2]
[391134190,1760386239127,-500.0,0.00021873,2]
[391134191,1760386239137,-500.0,0.00021873,2]
[391134192,1760386239147,-500.0,0.00021873,2]
[391134193,1760386239157,-500.2929554,0.00021873,2]
[391134194,1760386239167,-500.0,0.00021873,2]
[391134195,1760386239178,-500.0,0.00021873,2]
[391134196,1760386239188,-469.59342134,0.00021873,2]
[391134197,1760386239198,-243.4849422,0.00021873,2]
[391134198,1760386239207,-500.0,0.00021873,2]
[391134199,1760386239216,-500.0,0.00021873,2]
[391134200,1760386239226,-500.0,0.00021873,2]
[391134201,1760386239237,-500.0,0.00021873,2]
[391134202,1760386239246,-500.0,0.00021873,2]
[391134203,1760386239256,-291.57049695,0.00021873,2]
[391134204,1760386239266,-502.78255048,0.00021873,2]
[391134205,1760386239276,-501.30341032,0.00021873,2]
[391134206,1760386239285,-504.81437547,0.00021873,2]
[391134208,1760386239295,-500.0,0.00021873,2]
[391134210,1760386239304,-500.0,0.00021873,2]
[391134211,1760386239313,-500.58351193,0.00021873,2]
[391134212,1760386239322,-502.92145248,0.00021873,2]
[391134213,1760386239331,-503.34398146,0.00021873,2]
[391134214,1760386239340,-433.20336437,0.00021873,2]
[391134215,1760386239351,-500.0,0.00021873,2]
[391134216,1760386239360,-500.62493583,0.00021873,2]
[391134217,1760386239369,-500.0,0.00021873,2]
[391134218,1760386239379,-500.0,0.00021873,2]
[391134219,1760386239388,-500.6858775,0.00021873,2]
[391134220,1760386239397,-500.0,0.00021873,2]
[391134221,1760386239407,-500.38087691,0.00021873,2]
[391134222,1760386239416,-500.0,0.00021873,2]
[391134223,1760386239425,-500.5206657,0.00021873,2]
[391134224,1760386239435,-500.93463478,0.00021873,2]
[391134225,1760386239445,-500.0,0.00021873,2]
[391134227,1760386239454,-500.0,0.00021873,2]
[391134228,1760386239464,-500.0,0.00021873,2]
[391134229,1760386239474,-501.14392686,0.00021873,2]
[391134230,1760386239483,-500.0,0.00021873,2]
[391134231,1760386239493,-500.0,0.00021873,2]
[391134232,1760386239502,-500.0,0.00021873,2]
[391134234,1760386239512,-500.0,0.00021873,2]
[391134236,1760386239521,-500.0,0.00021873,2]
[391134238,1760386239531,-500.0,0.00021873,2]
[391134240,1760386239541,-500.0,0.00021873,2]
[391134242,1760386239550,-500.0,0.00021873,2]
[391134244,1760386239561,-161.71200343,0.00021873,2]
[391134246,1760386239570,-500.0,0.00021873,2]
[391134248,1760386239580,-151.0,0.00021885,7]
[391134250,1760386239589,-151.0,0.00021885,7]
[391134252,1760386239598,-151.0,0.00021885,7]
[391134254,1760386239608,-151.0,0.00021885,7]
[391134256,1760386239618,-191.134245,0.00021885,7]
[391134258,1760386239627,-151.0,0.00021885,7]
[391134260,1760386239636,-151.0,0.00021885,7]
[391134262,1760386239645,-151.0,0.00021885,7]
[391134264,1760386239654,-151.0,0.00021885,7]
[391134266,1760386239664,-151.0,0.00021885,7]
[391134268,1760386239673,-155.263993,0.00021885,7]
[391134270,1760386239683,-151.0,0.00021885,7]
[391134272,1760386239693,-151.0,0.00021885,7]
[391134274,1760386239703,-151.0,0.00021885,7]
[391134276,1760386239712,-151.0,0.00021885,7]
[391134278,1760386239721,-151.0,0.00021885,7]
[391134280,1760386239730,-151.0,0.00021885,7]
[391134282,1760386239740,-154.775544,0.00021885,7]
[391134284,1760386239749,-154.775544,0.00021885,7]
[391134299,1760386239860,-154.775544,0.00021885,7]
[391134301,1760386239870,-154.775544,0.00021885,7]
[391134303,1760386239879,-151.0,0.00021885,7]
[391134305,1760386239889,-151.0,0.00021885,7]
[391134307,1760386239898,-166.195044,0.00021885,7]
[391134309,1760386239907,-151.0,0.00021885,2]
[391134311,1760386239916,-166.195044,0.00021885,7]
[391134313,1760386239926,-151.0,0.00021885,2]
[391134315,1760386239935,-166.195044,0.00021885,7]
[391134317,1760386239944,-166.195044,0.00021885,7]
[391134319,1760386239953,-151.0,0.00021885,7]
[391134321,1760386239962,-151.0,0.00021885,7]
[391134323,1760386239972,-151.0,0.00021885,7]
[391134325,1760386239982,-151.0,0.00021885,7]
[391134327,1760386239992,-151.0,0.00021885,7]
[391134329,1760386240001,-151.0,0.00021885,7]
[391134331,1760386240010,-151.0,0.00021885,7]
[391134333,1760386240019,-151.0,0.00021885,7]
[391134335,1760386240028,-155.007616,0.00021885,7]
[391134337,1760386240038,-166.140222,0.00021885,7]
[391134339,1760386240047,-166.140222,0.00021885,7]
[391134341,1760386240056,-151.0,0.00021885,7]
[391134343,1760386240066,-166.140222,0.00021885,7]
[391134345,1760386240075,-166.140222,0.00021885,7]
[391134347,1760386240084,-151.0,0.00021885,7]
[391134349,1760386240096,-151.0,0.00021885,7]
[391134351,1760386240106,-151.0,0.00021885,7]
[391134353,1760386240115,-151.0,0.00021885,7]
[391134355,1760386240124,-151.0,0.00021885,7]
[391134357,1760386240134,-151.0,0.00021885,7]
[391134359,1760386240143,-296.796233,0.00021885,7]
[391134361,1760386240152,-151.299351,0.00021885,7]
[391134363,1760386240161,-1000.0,0.00021885,2]
[391134364,1760386240173,-1000.0,0.00021885,2]
[391134366,1760386240184,-1000.0,0.00021885,2]
[391134368,1760386240194,-1000.0,0.00021885,2]
[391134370,1760386240204,-151.0,0.00021885,7]
[391134372,1760386240214,-1000.0,0.00021885,2]
[391134374,1760386240224,-1000.0,0.00021885,2]
[391134376,1760386240234,-1000.0,0.00021885,2]
[391134378,1760386240244,-1000.0,0.00021885,2]
[391134380,1760386240253,-1000.0,0.00021885,2]
[391134382,1760386240262,-1000.0,0.00021885,2]
[391134384,1760386240272,-1000.0,0.00021885,2]
[391134386,1760386240282,-1000.0,0.00021885,2]
[391134388,1760386240291,-1000.0,0.00021885,2]
[391134390,1760386240301,-1000.0,0.00021885,2]
[391134392,1760386240310,-455.74938312,0.00021885,2]
[391134394,1760386240320,-151.0,0.00021885,7]
[391134396,1760386240329,-151.0,0.00021885,7]
[391134398,1760386240338,-483.763293,0.00021885,7]
[391134400,1760386240346,-151.0,0.00021885,7]